bitfinex-derivatives/quotes_BTCF0:USTF0_20241009
["timestamp","ask_amount","ask_price","bid_price","bid_amount"]
[1728435646906,0.08046,62171.0,62167.0,0.080464]
[1728435647313,0.08046,62171.0,62165.0,0.19]
[1728435647505,0.08046,62171.0,62168.0,0.080463]
[1728435648206,0.084154,62175.0,62169.0,0.19]
[1728435648407,0.3608,62176.0,62174.0,0.270455]
[1728435652512,0.3608,62176.0,62175.0,0.080454]
[1728435652703,0.3608,62176.0,62175.0,0.190954]
[1728435653607,0.1203,62182.0,62179.0,0.080448]
[1728435653812,0.317045,62182.0,62179.0,0.080448]
[1728435654205,0.12,62182.0,62179.0,0.19]
[1728435654414,0.0037,62186.0,62179.0,0.5508]
[1728435654605,0.080436,62189.0,62185.0,0.19]
[1728435654913,0.080432,62192.0,62186.0,0.08044]
[1728435655114,0.3645,62193.0,62186.0,0.08044]
[1728435655314,0.0037,62193.0,62186.0,0.4776]
[1728435655611,0.0037,62197.0,62186.0,0.4776]
[1728435655612,0.0037,62197.0,62192.0,0.19]
[1728435655813,0.0037,62202.0,62197.0,0.080425]
[1728435656010,0.080418,62203.0,62197.0,0.080425]
[1728435656516,0.47636,62204.0,62197.0,0.080425]
[1728435656709,0.080419,62202.0,62197.0,0.080425]
[1728435657411,0.4762,62204.0,62200.0,0.080421]
[1728435657603,0.3608,62204.0,62201.0,0.19]
[1728435657804,0.3608,62204.0,62203.0,0.080418]
[1728435659013,0.3645,62211.0,62203.0,0.080418]
[1728435659317,0.3608,62211.0,62205.0,0.19]
[1728435660514,0.3608,62210.0,62205.0,0.19]
[1728435660903,0.3608,62210.0,62209.0,0.19]
[1728435662014,0.1189,62214.0,62205.0,0.5508]
[1728435662223,0.1189,62214.0,62201.0,0.0037]
[1728435662224,0.3608,62206.0,62201.0,0.1937]
[1728435662428,0.3608,62206.0,62195.0,0.084128]
[1728435662429,0.080417,62204.0,62195.0,0.084128]
[1728435662722,0.3608,62196.0,62192.0,0.00241145]
[1728435662924,0.08043,62194.0,62192.0,0.00241145]
[1728435663121,0.080431,62193.0,62192.0,0.00241145]
[1728435665605,0.150431,62193.0,62183.0,0.0075]
[1728435665805,0.3608,62184.0,62183.0,0.080443]
[1728435666414,0.42682259,62184.0,62183.0,0.05339871]
[1728435667321,0.06602259,62184.0,62183.0,0.05339871]
[1728435669016,0.06602259,62184.0,62183.0,0.24339871]
[1728435669917,0.06602259,62184.0,62183.0,0.27227567]
[1728435670307,0.14033599,62184.0,62183.0,0.27227567]
[1728435670513,0.14033599,62184.0,62183.0,0.19]
[1728435670712,0.58377357,62184.0,62178.0,0.080449]
[1728435671016,0.22297357,62183.0,62179.0,0.19]
[1728435671221,0.14033599,62182.0,62181.0,0.080446]
[1728435671817,0.22297357,62182.0,62181.0,0.080446]
[1728435672120,0.14033599,62182.0,62181.0,0.080446]
[1728435672317,0.22297357,62182.0,62181.0,0.080446]
[1728435672520,0.22297357,62182.0,62179.0,0.19]
[1728435672725,0.080449,62179.0,62174.0,0.2995]
[1728435672924,0.06602259,62178.0,62174.0,0.2995]
[1728435673126,0.06602259,62177.0,62176.0,0.080452]
[1728435673516,0.06602259,62177.0,62174.0,0.32908683]
[1728435673717,0.06602259,62176.0,62174.0,0.32908683]
[1728435674017,0.1547604,62180.0,62174.0,0.32908683]
[1728435674018,0.06602259,62175.0,62174.0,0.32908683]
[1728435674523,0.080447,62180.0,62174.0,0.40954183]
[1728435674724,0.1193,62181.0,62174.0,0.32908683]
[1728435675027,0.3093,62181.0,62169.0,0.19]
[1728435675226,0.270456,62173.0,62161.0,0.19]
[1728435675427,0.67252,62173.0,62161.0,0.0075]
[1728435675640,0.67252,62173.0,62160.0,0.02930905]
[1728435675641,0.19,62162.0,62160.0,0.02930905]
[1728435675926,0.19,62162.0,62159.0,0.002413]
[1728435675927,0.5508,62162.0,62159.0,0.002413]
[1728435676126,0.080473,62160.0,62159.0,0.002413]
[1728435677333,0.118,62161.0,62159.0,0.002413]
[1728435678215,0.3608,62162.0,62161.0,0.080472]
[1728435678420,0.3608,62162.0,62161.0,0.270472]
[1728435680717,0.3608,62162.0,62159.0,0.002413]
[1728435680718,0.5508,62162.0,62159.0,0.002413]
[1728435680921,0.080473,62160.0,62159.0,0.002413]
[1728435681222,0.541273,62160.0,62150.0,0.0075]
[1728435681416,0.441286,62151.0,62147.0,0.08049]
[1728435681624,0.1105,62150.0,62149.0,0.080488]
[1728435681824,0.3608,62151.0,62150.0,0.080486]
[1728435686937,0.3608,62151.0,62150.0,0.302686]
[1728435688041,0.3608,62151.0,62141.0,0.32205351]
[1728435688247,0.3608,62151.0,62141.0,0.13205351]
[1728435688248,0.19,62145.0,62141.0,0.13205351]
[1728435688538,0.441293,62146.0,62142.0,0.080496]
[1728435689242,0.080493,62145.0,62141.0,0.19]
[1728435689631,0.080495,62144.0,62141.0,0.19]
[1728435689831,0.1215,62144.0,62140.0,0.3608]
[1728435690034,0.1215,62144.0,62141.0,0.270497]
[1728435695841,0.3608,62147.0,62146.0,0.080491]
[1728435696243,0.3608,62147.0,62142.0,0.196696]
[1728435696434,0.080492,62146.0,62139.0,0.0805]
[1728435696636,0.20198203,62146.0,62144.0,0.06434426]
[1728435696840,0.080493,62145.0,62142.0,0.06434426]
[1728435697046,0.080494,62144.0,62142.0,0.06434426]
[1728435697641,0.080494,62144.0,62143.0,0.04797259]
[1728435697846,0.28247303,62146.0,62141.0,0.06434426]
[1728435698047,0.28247303,62146.0,62143.0,0.04797325]
[1728435698349,0.28247303,62146.0,62145.0,0.04797325]
[1728435699138,0.64327303,62146.0,62145.0,0.04797325]
[1728435699343,0.64327303,62146.0,62144.0,0.06434426]
[1728435699656,0.3608,62146.0,62145.0,0.270493]
[1728435699850,0.3608,62151.0,62145.0,0.25434426]
[1728435700043,0.3608,62151.0,62149.0,0.19]
[1728435700239,0.3608,62151.0,62150.0,0.04800769]
[1728435700747,0.3608,62151.0,62150.0,0.12849369]
[1728435701251,0.3608,62151.0,62150.0,0.080486]
[1728435703451,0.3608,62151.0,62150.0,0.28358728]
[1728435704150,0.3608,62151.0,62150.0,0.20315665]
[1728435704548,0.3608,62151.0,62150.0,0.080486]
[1728435705751,0.3608,62151.0,62145.0,0.19]
[1728435705944,0.3608,62151.0,62141.0,0.5508]
[1728435706251,0.080491,62147.0,62144.0,0.080494]
[1728435708046,0.080487,62150.0,62146.0,0.08049]
[1728435708352,0.080487,62150.0,62145.0,0.19]
[1728435708353,0.080487,62150.0,62148.0,0.080489]
[1728435709152,0.3608,62149.0,62148.0,0.080489]
[1728435710747,0.4608,62149.0,62144.0,0.080494]
[1728435710952,0.08049,62148.0,62145.0,0.080492]
[1728435711168,0.18049,62148.0,62145.0,0.080492]
[1728435711649,0.18049,62148.0,62147.0,0.08025272]
[1728435712252,0.18049,62148.0,62147.0,0.20292456]
[1728435712755,0.441288,62149.0,62147.0,0.20292456]
[1728435712959,0.441288,62149.0,62147.0,0.17074272]
[1728435713358,0.441288,62149.0,62148.0,0.08025272]
[1728435713558,0.3608,62149.0,62148.0,0.080489]
[1728435713754,0.3608,62149.0,62148.0,0.31896011]
[1728435714055,0.0037,62155.0,62152.0,0.080483]
[1728435714250,0.080479,62156.0,62152.0,0.16092168]
[1728435714453,0.080479,62156.0,62153.0,0.080481]
[1728435714859,0.080479,62156.0,62152.0,0.08043868]
[1728435715052,0.363,62157.0,62156.0,0.080478]
[1728435715251,0.3608,62157.0,62156.0,0.080478]
[1728435716153,0.444971,62163.0,62156.0,0.080478]
[1728435716154,0.3645,62163.0,62160.0,0.080473]
[1728435716360,0.3645,62163.0,62156.0,0.12264882]
[1728435716361,0.441269,62163.0,62162.0,0.06432301]
[1728435716567,0.080473,62161.0,62156.0,0.16088176]
[1728435716862,0.19,62165.0,62156.0,0.080478]
[1728435716863,0.3608,62158.0,62156.0,0.080478]
[1728435717259,0.3608,62158.0,62154.0,0.08040376]
[1728435717463,0.441276,62158.0,62154.0,0.08040376]
[1728435717766,0.080478,62157.0,62153.0,0.08040376]
[1728435718265,0.080478,62157.0,62155.0,0.0643085]
[1728435719261,0.3608,62158.0,62156.0,0.04822403]
[1728435719559,0.3608,62158.0,62154.0,0.082481]
[1728435719971,0.441276,62158.0,62154.0,0.082481]
[1728435720564,0.441276,62158.0,62155.0,0.001]
[1728435720761,0.39007502,62163.0,62155.0,0.001]
[1728435720961,0.3608,62163.0,62162.0,0.19]
[1728435721363,0.3608,62163.0,62157.0,0.080476]
[1728435721364,0.3608,62163.0,62159.0,0.19]
[1728435722269,0.36312,62170.0,62162.0,0.19]
[1728435722482,0.3608,62170.0,62169.0,0.19]
[1728435722765,0.00241326,62175.0,62169.0,0.19]
[1728435722966,0.00241326,62175.0,62174.0,0.270455]
[1728435723162,0.06844643,62175.0,62174.0,0.270455]
[1728435723363,0.06603317,62182.0,62174.0,0.19]
[1728435723565,0.06603317,62181.0,62175.0,0.1206]
[1728435723762,0.06603317,62182.0,62178.0,0.080449]
[1728435724082,0.0037,62187.0,62178.0,0.19]
[1728435724372,0.26437622,62196.0,62188.0,0.080437]
[1728435724373,0.0037,62190.0,62188.0,0.080437]
[1728435724569,0.23331812,62194.0,62188.0,0.080437]
[1728435724780,0.23331812,62194.0,62186.0,0.19]
[1728435725271,0.080432,62192.0,62185.0,0.080441]
[1728435725766,0.080432,62192.0,62186.0,0.080439]
[1728435726067,0.080432,62192.0,62187.0,0.080438]
[1728435726272,0.080432,62192.0,62188.0,0.080436]
[1728435726971,0.080432,62192.0,62188.0,0.083436]
[1728435727769,0.080433,62191.0,62188.0,0.083436]
[1728435727972,0.080433,62191.0,62188.0,0.080436]
[1728435728162,0.441236,62189.0,62188.0,0.001]
[1728435729271,0.080442,62184.0,62178.0,0.0037]
[1728435729471,0.441245,62182.0,62180.0,0.080447]
[1728435730267,0.080448,62180.0,62175.0,0.2728654]
[1728435730469,0.3685,62189.0,62175.0,0.2728654]
[1728435730470,0.0124,62202.0,62181.0,0.24281807]
[1728435730669,0.3608,62222.0,62181.0,0.24281807]
[1728435730670,0.1111,62214.0,62210.0,0.080408]
[1728435730972,0.1111,62214.0,62213.0,0.270405]
[1728435732079,0.080394,62221.0,62216.0,0.080401]
[1728435732373,0.1111,62226.0,62218.0,0.3608]
[1728435732576,0.080391,62224.0,62218.0,0.3608]
[1728435732870,0.080391,62224.0,62218.0,0.441198]
[1728435733066,0.080391,62224.0,62218.0,0.3608]
[1728435733267,0.080391,62224.0,62220.0,0.080396]
[1728435733664,0.06598852,62223.0,62218.0,0.3608]
[1728435733865,0.080394,62221.0,62218.0,0.3608]
[1728435734075,0.080394,62221.0,62218.0,0.3658]
[1728435734076,0.06598852,62220.0,62218.0,0.3658]
[1728435734272,0.06598852,62219.0,62218.0,0.446198]
[1728435734679,0.06598852,62219.0,62218.0,0.447198]
[1728435735268,0.06598852,62219.0,62218.0,0.086398]
[1728435736069,0.06598852,62219.0,62218.0,0.006]
[1728435736070,0.14638552,62219.0,62218.0,0.006]
[1728435736278,0.080397,62219.0,62218.0,0.006]
[1728435736673,0.080394,62221.0,62218.0,0.011]
[1728435736981,0.080397,62219.0,62218.0,0.011]
[1728435737870,0.3608,62222.0,62218.0,0.009]
[1728435738467,0.080398,62218.0,62217.0,0.080399]
[1728435740181,0.3618,62222.0,62217.0,0.28]
[1728435740487,0.3618,62222.0,62221.0,0.080394]
[1728435740682,0.3618,62222.0,62221.0,0.360394]
[1728435740972,0.4818,62222.0,62221.0,0.360394]
[1728435741180,0.12,62222.0,62221.0,0.360394]
[1728435741573,0.1111,62226.0,62225.0,0.080389]
[1728435741772,0.2211,62226.0,62225.0,0.080389]
[1728435742480,0.1111,62226.0,62225.0,0.080389]
[1728435743379,0.191488,62226.0,62225.0,0.080389]
[1728435743674,0.191488,62226.0,62225.0,0.082389]
[1728435744179,0.1111,62226.0,62225.0,0.082389]
[1728435745376,0.39160158,62235.0,62225.0,0.002]
[1728435745580,0.39160158,62235.0,62231.0,0.080381]
[1728435745581,0.08038,62233.0,62231.0,0.080381]
[1728435745879,0.1154,62234.0,62230.0,0.3608]
[1728435746074,0.080381,62231.0,62230.0,0.3608]
[1728435747579,0.080381,62231.0,62230.0,0.3618]
[1728435749079,0.080381,62231.0,62230.0,0.001]
[1728435750384,1.262461,62231.0,62230.0,0.001]
[1728435750585,0.080392,62223.0,62222.0,0.080393]
[1728435750789,0.3954,62234.0,62221.0,0.3608]
[1728435750790,0.080393,62222.0,62221.0,0.3608]
[1728435752991,0.180393,62222.0,62221.0,0.3608]
[1728435753186,0.180393,62222.0,62221.0,0.014]
[1728435753187,0.181393,62222.0,62221.0,0.014]
[1728435758985,0.181393,62222.0,62221.0,0.204]
[1728435760392,0.181393,62222.0,62221.0,0.014]
[1728435763800,0.1411636,62222.0,62221.0,0.13653876]
[1728435764195,0.1411636,62222.0,62221.0,0.21676348]
[1728435764897,0.1411636,62222.0,62221.0,0.09422472]
[1728435765405,0.1411636,62222.0,62221.0,0.014]
[1728435766493,0.1411636,62222.0,62221.0,0.09422472]
[1728435766794,0.1411636,62222.0,62221.0,0.21676085]
[1728435767190,0.1411636,62222.0,62221.0,0.014]
[1728435767698,0.1411636,62222.0,62221.0,0.094394]
[1728435768197,0.1411636,62222.0,62221.0,0.17461872]
[1728435768501,0.1411636,62222.0,62221.0,0.094394]
[1728435769995,0.0411636,62222.0,62221.0,0.094394]
[1728435770398,0.0411636,62222.0,62221.0,0.15863599]
[1728435771202,0.0411636,62222.0,62221.0,0.094394]
[1728435771905,0.0411636,62222.0,62221.0,0.455194]
[1728435772411,0.001,62222.0,62221.0,0.455194]
[1728435774096,0.001,62222.0,62221.0,0.51942437]
[1728435774297,0.001,62222.0,62221.0,0.50336742]
[1728435775516,0.001,62222.0,62221.0,0.455194]
[1728435775702,0.001,62222.0,62221.0,0.50336742]
[1728435776308,0.001,62222.0,62221.0,0.455194]
[1728435776811,0.081393,62222.0,62221.0,0.3748]
[1728435777819,0.181393,62222.0,62221.0,0.3748]
[1728435779007,0.24738092,62222.0,62221.0,0.3748]
[1728435779206,0.3216849,62222.0,62221.0,0.3748]
[1728435780607,0.080399,62218.0,62216.0,0.6312]
[1728435780803,0.2206919,62217.0,62216.0,0.631201]
[1728435781017,0.1402919,62217.0,62216.0,0.631201]
[1728435781916,0.1402919,62217.0,62216.0,0.632201]
[1728435782411,0.1492919,62217.0,62216.0,0.632201]
[1728435783116,0.1492919,62217.0,62216.0,1.714401]
[1728435783622,0.07498792,62217.0,62216.0,1.714401]
[1728435784203,0.1492919,62217.0,62216.0,1.714401]
[1728435784411,0.1492919,62217.0,62216.0,1.114401]
[1728435784810,0.1492919,62217.0,62216.0,1.714401]
[1728435785012,0.0037,62225.0,62216.0,1.714401]
[1728435785313,0.084084,62229.0,62225.0,0.080389]
[1728435785514,0.080384,62229.0,62228.0,0.19]
[1728435785718,0.080384,62229.0,62228.0,0.12688111]
[1728435786111,0.15467815,62229.0,62228.0,0.12688111]
[1728435786610,0.15567815,62229.0,62228.0,0.12688111]
[1728435786922,0.081384,62229.0,62228.0,0.12688111]
[1728435788524,0.080384,62229.0,62228.0,0.12688111]
[1728435788714,0.080384,62229.0,62228.0,0.13388111]
[1728435788913,0.080384,62229.0,62228.0,0.007]
[1728435789925,0.080384,62229.0,62228.0,0.277385]
[1728435791825,0.080384,62229.0,62228.0,0.007]
[1728435793720,0.180384,62229.0,62228.0,0.3678]
[1728435795927,0.180384,62229.0,62228.0,0.007]
[1728435798229,0.24636313,62229.0,62228.0,0.007]
[1728435800033,0.080394,62221.0,62220.0,0.3608]
[1728435800329,0.080394,62221.0,62220.0,0.25941031]
[1728435800330,0.22066848,62221.0,62220.0,0.25941031]
[1728435800539,0.080402,62215.0,62214.0,0.3608]
[1728435800725,0.22067648,62215.0,62214.0,0.3608]
[1728435801923,0.094402,62215.0,62214.0,0.3618]
[1728435804325,0.094402,62215.0,62214.0,0.001]
[1728435804524,0.11721742,62215.0,62214.0,0.001]
[1728435805324,0.094402,62215.0,62214.0,0.001]
[1728435807533,0.014,62215.0,62214.0,0.001]
[1728435807726,0.014,62215.0,62214.0,0.081403]
[1728435811229,0.0037,62225.0,62214.0,1.0832]
[1728435811427,0.080389,62225.0,62223.0,0.19]
[1728435812736,0.080389,62225.0,62224.0,0.080391]
[1728435812737,0.001,62225.0,62224.0,0.080391]
[1728435813336,0.001,62225.0,62223.0,0.197]
[1728435813546,0.080391,62224.0,62223.0,0.197]
[1728435813832,0.080391,62224.0,62223.0,0.007]
[1728435814640,0.080393,62222.0,62221.0,0.3608]
[1728435815933,0.080393,62222.0,62221.0,0.3748]
[1728435820435,0.180393,62222.0,62221.0,0.3748]
[1728435821640,0.20411081,62222.0,62221.0,0.3748]
[1728435821835,0.20411081,62222.0,62221.0,0.014]
[1728435825135,0.20411081,62222.0,62212.0,0.00241071]
[1728435825136,0.080405,62213.0,62212.0,0.00241071]
[1728435825329,0.441205,62213.0,62212.0,0.00241071]
[1728435826333,0.541205,62213.0,62212.0,0.00241071]
[1728435826538,0.080414,62206.0,62205.0,0.3608]
[1728435827728,0.086414,62206.0,62205.0,0.3618]
[1728435828145,0.086414,62206.0,62205.0,0.5518]
[1728435828442,0.088414,62206.0,62205.0,0.5518]
[1728435829046,0.088414,62206.0,62205.0,0.632215]
[1728435829940,0.088414,62206.0,62205.0,0.271415]
[1728435830140,0.008,62206.0,62205.0,0.271415]
[1728435830744,0.088414,62206.0,62205.0,0.081415]
[1728435831042,0.088414,62206.0,62205.0,0.001]
[1728435833433,0.088414,62206.0,62205.0,0.081415]
[1728435835840,0.088414,62206.0,62205.0,0.001]
[1728435838449,0.088414,62206.0,62205.0,0.081415]
[1728435839453,0.008,62206.0,62205.0,0.081415]
[1728435840550,0.088414,62206.0,62205.0,0.001]
[1728435840742,0.208414,62206.0,62205.0,0.001]
[1728435847952,0.569214,62206.0,62205.0,0.001]
[1728435849648,0.3688,62206.0,62205.0,0.271415]
[1728435851554,0.008,62206.0,62205.0,0.271415]
[1728435853464,0.441199,62218.0,62214.0,0.080402]
[1728435853755,0.3608,62218.0,62217.0,0.2704]
[1728435854354,0.3608,62218.0,62217.0,0.33468963]
[1728435854554,0.3608,62218.0,62217.0,0.2704]
[1728435855158,0.3638,62218.0,62217.0,0.2704]
[1728435857367,0.3638,62218.0,62217.0,0.33462258]
[1728435858167,0.3638,62218.0,62217.0,0.35793532]
[1728435858355,0.3638,62218.0,62217.0,0.06422258]
[1728435858557,0.3638,62218.0,62213.0,0.080404]
[1728435858558,0.5538,62218.0,62216.0,0.06422258]
[1728435858862,0.080401,62216.0,62215.0,0.06422258]
[1728435859065,0.080401,62216.0,62215.0,0.04815728]
[1728435861464,0.080401,62216.0,62215.0,0.001]
[1728435861465,0.093401,62216.0,62215.0,0.001]
[1728435862567,0.093401,62216.0,62215.0,0.081402]
[1728435863266,0.013,62216.0,62215.0,0.081402]
[1728435871065,0.013,62216.0,62215.0,0.271402]
[1728435877262,0.07686076,62220.0,62216.0,0.0804]
[1728435877460,0.07686076,62220.0,62217.0,0.27168135]
[1728435877662,0.19686076,62220.0,62218.0,0.27168135]
[1728435877975,0.46725676,62220.0,62219.0,0.12253657]
[1728435878168,0.46725676,62220.0,62219.0,0.09628544]
[1728435878477,0.46725676,62220.0,62219.0,0.09631118]
[1728435878670,0.28025676,62220.0,62219.0,0.19]
[1728435878869,0.16025676,62220.0,62219.0,0.19]
[1728435879277,0.16025676,62220.0,62219.0,0.33914485]
[1728435879776,0.07986076,62220.0,62219.0,0.41954185]
[1728435880076,0.07686076,62220.0,62219.0,0.41953939]
[1728435880678,0.3608,62223.0,62219.0,0.35314239]
[1728435880873,0.3608,62223.0,62222.0,0.080393]
[1728435881072,0.3608,62223.0,62222.0,0.22953539]
[1728435881770,0.441192,62223.0,62222.0,0.22953539]
[1728435883175,0.080392,62223.0,62222.0,0.22953539]
[1728435883476,0.080392,62223.0,62222.0,0.24053539]
[1728435884272,0.080392,62223.0,62222.0,0.091393]
[1728435889271,0.0879,62224.0,62223.0,0.080392]
[1728435889978,0.0879,62224.0,62223.0,0.270392]
[1728435890483,0.0879,62224.0,62223.0,0.280392]
[1728435890678,0.0922,62229.0,62226.0,0.080387]
[1728435890880,0.080387,62227.0,62226.0,0.080387]
[1728435891277,0.0885,62229.0,62228.0,0.080385]
[1728435891474,0.0885,62229.0,62228.0,0.270385]
[1728435891674,0.168884,62229.0,62228.0,0.270385]
[1728435892286,0.168884,62229.0,62228.0,0.36682156]
[1728435892483,0.0885,62229.0,62228.0,0.36682156]
[1728435893183,0.0885,62229.0,62228.0,0.48933938]
[1728435893578,0.0885,62229.0,62228.0,0.49433938]
[1728435894786,0.0885,62229.0,62228.0,0.51776936]
[1728435895685,0.168884,62229.0,62228.0,0.39790282]
[1728435899397,0.168884,62229.0,62228.0,0.275385]
[1728435899897,0.168884,62229.0,62228.0,0.085385]
[1728435900594,0.168884,62229.0,62228.0,0.275385]
[1728435901084,0.168884,62229.0,62228.0,0.085385]
[1728435901393,0.288884,62229.0,62228.0,0.085385]
[1728435901689,0.168884,62229.0,62228.0,0.085385]
[1728435902290,0.0885,62229.0,62228.0,0.275385]
[1728435902483,0.3608,62230.0,62229.0,0.080384]
[1728435903287,0.0037,62237.0,62236.0,0.080375]
[1728435903479,0.00241071,62242.0,62236.0,0.4808]
[1728435903678,0.00241071,62242.0,62241.0,0.200369]
[1728435906495,0.00241071,62242.0,62241.0,0.270369]
[1728435906794,0.00241071,62242.0,62241.0,0.282369]
[1728435908199,0.08277771,62242.0,62241.0,0.282369]
[1728435908397,0.00241071,62242.0,62241.0,0.282369]
[1728435910398,0.080365,62244.0,62241.0,0.282369]
[1728435912902,0.080365,62244.0,62241.0,0.270369]
[1728435913100,0.3608,62248.0,62247.0,0.080361]
[1728435913291,0.44116,62248.0,62247.0,0.270361]
[1728435914498,0.080364,62245.0,62243.0,0.270366]
[1728435915200,0.080364,62245.0,62244.0,0.080365]
[1728435916205,0.080375,62236.0,62235.0,0.0037]
[1728435916402,0.080379,62233.0,62230.0,0.441182]
[1728435916597,0.3608,62231.0,62228.0,0.00241026]
[1728435916805,0.080379,62233.0,62228.0,0.00241026]
[1728435916806,0.080384,62229.0,62228.0,0.00241026]
[1728435917492,0.370384,62229.0,62228.0,0.00241026]
[1728435917997,0.180384,62229.0,62228.0,0.00241026]
[1728435918502,0.38422254,62230.0,62222.0,0.19]
[1728435918713,0.49422254,62230.0,62222.0,0.19]
[1728435919096,0.080384,62229.0,62222.0,0.19]
[1728435919298,0.38646255,62230.0,62222.0,0.19]
[1728435919591,0.08039,62225.0,62222.0,0.270393]
[1728435920199,0.08039,62225.0,62222.0,0.272393]
[1728435927016,0.080398,62219.0,62216.0,0.0037]
[1728435927208,0.606299,62218.0,62212.0,0.19]
[1728435927409,0.245499,62218.0,62215.0,0.080402]
[1728435927810,0.245499,62218.0,62212.0,0.19]
[1728435927811,0.080401,62216.0,62212.0,0.19]
[1728435928014,0.080405,62214.0,62212.0,0.080406]
[1728435928712,0.080405,62214.0,62209.0,0.4639186]
[1728435929212,0.080405,62214.0,62210.0,0.080409]
[1728435929514,0.080405,62214.0,62212.0,0.006]
[1728435929914,0.080405,62214.0,62209.0,0.3668]
[1728435930217,0.080401,62217.0,62213.0,0.080405]
[1728435930514,0.080401,62216.0,62213.0,0.080405]
[1728435930714,0.190401,62216.0,62213.0,0.080405]
[1728435930915,0.080403,62214.0,62210.0,0.005]
[1728435931221,0.04017162,62214.0,62212.0,0.06405182]
[1728435932525,0.04017162,62214.0,62212.0,0.080406]
[1728435933212,0.1651,62218.0,62211.0,0.06405182]
[1728435933417,0.270402,62215.0,62213.0,0.04801864]
[1728435933607,0.270402,62215.0,62209.0,0.006]
[1728435933608,0.5508,62214.0,62209.0,0.006]
[1728435933915,0.270409,62210.0,62206.0,0.00241115]
[1728435934113,0.441212,62207.0,62206.0,0.00241115]
[1728435934318,0.541212,62207.0,62206.0,0.00241115]
[1728435934517,0.541212,62207.0,62200.0,0.04801864]
[1728435934518,0.94308,62207.0,62200.0,0.04801864]
[1728435934708,0.94308,62207.0,62195.0,0.04801864]
[1728435934709,0.080427,62196.0,62195.0,0.04801864]
[1728435934911,0.080427,62196.0,62190.0,0.11205025]
[1728435934912,0.6508,62196.0,62190.0,0.11205025]
[1728435935211,0.080434,62190.0,62189.0,0.04799843]
[1728435935407,0.5508,62191.0,62186.0,0.00241201]
[1728435935408,0.55304001,62191.0,62186.0,0.00241201]
[1728435935630,0.441234,62191.0,62187.0,0.080438]
[1728435936512,0.441234,62191.0,62189.0,0.080436]
[1728435936513,0.3608,62191.0,62189.0,0.080436]
[1728435936817,0.3608,62191.0,62190.0,0.080434]
[1728435937314,0.25615611,62191.0,62190.0,0.080434]
[1728435938114,0.331428,62195.0,62190.0,0.080434]
[1728435939413,0.331428,62195.0,62190.0,0.12843243]
[1728435939613,0.331428,62195.0,62190.0,0.080434]
[1728435939816,0.080431,62193.0,62190.0,0.080434]
[1728435940022,0.080435,62190.0,62188.0,0.04799843]
[1728435940225,0.19,62191.0,62186.0,0.13085044]
[1728435940226,0.080436,62189.0,62186.0,0.13085044]
[1728435940519,0.270438,62187.0,62186.0,0.05041044]
[1728435940724,0.57488874,62187.0,62186.0,0.00241201]
[1728435940915,0.57488874,62187.0,62183.0,0.04799843]
[1728435940916,0.080442,62184.0,62183.0,0.04799843]
[1728435941412,0.080442,62184.0,62182.0,0.080444]
[1728435941614,0.3608,62192.0,62180.0,0.06405182]
[1728435941615,0.080445,62182.0,62180.0,0.06405182]
[1728435941822,0.080445,62182.0,62178.0,0.06405182]
[1728435942122,0.08045,62178.0,62176.0,0.06405182]
[1728435942315,0.441251,62177.0,62176.0,0.06405182]
[1728435942515,0.441251,62177.0,62172.0,0.06379262]
[1728435942516,0.080453,62176.0,62172.0,0.06379262]
[1728435942826,0.270456,62173.0,62172.0,0.06379262]
[1728435943029,0.080466,62166.0,62165.0,0.04785618]
[1728435943319,0.270456,62173.0,62158.0,0.08030801]
[1728435943320,0.08047,62163.0,62159.0,0.0037]
[1728435943523,0.19,62164.0,62159.0,0.080474]
[1728435944109,0.080472,62162.0,62159.0,0.080474]
[1728435944311,0.0844,62166.0,62156.0,0.08030801]
[1728435944521,0.19,62160.0,62159.0,0.011]
[1728435944711,0.2044,62166.0,62159.0,0.011]
[1728435944712,0.19,62163.0,62159.0,0.011]
[1728435944912,0.080473,62161.0,62159.0,0.011]
[1728435945112,0.080473,62160.0,62159.0,0.011]
[1728435945424,0.270473,62160.0,62159.0,0.011]
[1728435945617,0.080473,62160.0,62159.0,0.006]
[1728435945815,0.19,62164.0,62159.0,0.086475]
[1728435946009,0.08047,62163.0,62159.0,0.086475]
[1728435946213,0.19047,62163.0,62159.0,0.086475]
[1728435946419,0.19047,62163.0,62159.0,0.16678301]
[1728435947310,0.19047,62163.0,62160.0,0.20296457]
[1728435947509,0.19047,62163.0,62160.0,0.16078101]
[1728435947720,0.06161216,62163.0,62162.0,0.08030801]
[1728435947921,0.080471,62162.0,62161.0,0.08030801]
[1728435948217,0.080472,62161.0,62159.0,0.08630801]
[1728435948430,0.080473,62160.0,62159.0,0.08030801]
[1728435948623,0.080473,62160.0,62158.0,0.08030801]
[1728435948624,0.60264,62160.0,62158.0,0.08030801]
[1728435948817,0.60264,62160.0,62148.0,0.21485843]
[1728435948818,0.080488,62149.0,62148.0,0.21485843]
[1728435949021,0.631288,62149.0,62148.0,0.11472187]
[1728435949319,0.631288,62149.0,62148.0,0.00241344]
[1728435950824,0.631288,62149.0,62148.0,0.00641344]
[1728435951725,0.3608,62149.0,62148.0,0.00641344]
[1728435952316,0.5508,62149.0,62148.0,0.12909779]
[1728435952523,0.6508,62149.0,62148.0,0.12909779]
[1728435953517,0.47358036,62149.0,62148.0,0.12909779]
[1728435954024,0.47358036,62149.0,62148.0,0.12909777]
[1728435955129,0.28358036,62149.0,62148.0,0.20958677]
[1728435955314,0.18358036,62149.0,62148.0,0.30602333]
[1728435955514,0.18358036,62149.0,62148.0,0.20958677]
[1728435955824,0.19,62152.0,62150.0,0.080486]
[1728435956022,0.19,62152.0,62151.0,0.21799768]